[Event "33rd Cannes Open 2019"]
[Site "Cannes"]
[Date "2019.02.20"]
[Round "4.8"]
[White "Degraeve, Remy"]
[Black "Basso, Pier Luigi"]
[Result "0-1"]
[ECO "D11"]
[WhiteElo "2327"]
[BlackElo "2512"]
[Annotator "RC"]
[PlyCount "122"]
[EventDate "2019.02.18"]
[EventType "swiss"]
[EventCountry "FRA"]
[SourceTitle "playchess.com"]
[Source "ChessBase"]
[SourceQuality "1"]
[TimeControl "40/5400+30:1800+30"]

1. d4 {[%emt 0:00:00]} d5 {[%emt 0:10:21]} 2. c4 {[%emt 0:00:00]} c6 {[%emt 0:01:54]} 3. Nf3 {[%emt 0:00:00]} Nf6 {[%emt 0:00:06]} 4. e3 {[%emt 0:00:00]} Bg4 {[%emt 0:00:04]} 5. Nc3 {[%emt 0:00:00]} e6 {[%emt 0:00:03]} 6. Qb3 {[%emt 0:00:00]} Qb6 {[%emt 0:00:05]} 7. Nh4 {[%emt 0:00:09]} Bh5 {[%emt 0:00:05]} 8. h3 {[%emt 0:00:04]} g5 {[%emt 0:01:04]} 9. Nf3 {[%emt 0:00:22]} h6 {[%emt 0:00:43]} 10. Bd3 {[%emt 0:00:02]} Rg8 {[%emt 0:02:21]} 11. Qc2 {[%emt 0:03:38]} Nbd7 {[%emt 0:01:25]} 12. Bd2 {[%emt 0:00:52]} Bg6 {[%emt 0:10:29]} 13. Bxg6 {[%emt 0:00:30]} Rxg6 {[%emt 0:03:42]} 14. O-O-O {[%emt 0:03:04]} dxc4 {[%emt 0:02:38]} 15. e4 {[%emt 0:06:33]} O-O-O {[%emt 0:00:24]} 16. Qa4 {[%emt 0:04:20]} Bb4 {[%emt 0:08:36]} 17. Ne2 {[%emt 0:19:47]} Be7 {[%emt 0:18:21]} 18. Ng3 {[%emt 0:05:28]} Qb5 {[%emt 0:06:08]} 19. Qxa7 {[%emt 0:01:45]} Bb4 {[%emt 0:02:15]} 20. Bxb4 {[%emt 0:07:45]} Qxb4 {[%emt 0:00:27]} 21. Rhe1 {[%emt 0:04:13]} Kc7 {[%emt 0:01:10]} 22. Re3 {[%emt 0:00:56]} g4 {[%emt 0:03:41]} 23. Ne1 {[%emt 0:01:53]} Rgg8 {[%emt 0:02:33]} 24. Qa3 {[%emt 0:01:14]} Qb5 {[%emt 0:02:57]} 25. Kb1 {[%emt 0:03:20]} Ra8 {[%emt 0:01:15]} 26. Qc3 {[%emt 0:00:04]} Rxa2 {[%emt 0:08:05]} 27. Kxa2 {[%emt 0:13:37]} Qa4+ {[%emt 0:00:05]} 28. Qa3 {[%emt 0:00:07]} Qxd1 {[%emt 0:00:03]} 29. d5 {[%emt 0:00:14]} Nb6 {[%emt 0:02:34]} 30. Qe7+ {[%emt 0:00:35]} Nfd7 {[%emt 0:00:04]} 31. Ra3 {[%emt 0:00:19]} exd5 {[%emt 0:02:25]} 32. Nf5 {[%emt 0:03:05]} dxe4 {[%emt 0:00:20]} 33. Nd3 {[%emt 0:00:37]} Nc8 {[%emt 0:05:00]} 34. Qxe4 {[%emt 0:02:01]} cxd3 {[%emt 0:00:08]} 35. Qf4+ {[%emt 0:02:41]} Kd8 {[%emt 0:00:01]} 36. Nd6 {[%emt 0:00:18]} Qe2 {[%emt 0:01:46]} 37. Nxb7+ {[%emt 0:05:02]} Ke7 {[%emt 0:00:17]} 38. Ra4 {[%emt 0:02:51]} Qe6+ {[%emt 0:00:17]} 39. Kb1 {[%emt 0:00:02]} Qe1+ {[%emt 0:00:15]} 40. Ka2 {[%emt 0:00:05]} Qe6+ {[%emt 0:00:06]} 41. Kb1 {[%emt 0:30:03]} Rg5 {[%emt 0:34:49]} 42. Qc7 {[%emt 0:00:30]} Kf6 {[%emt 0:00:00]} 43. Qxc8 {[%emt 0:00:00]} d2 {[%emt 0:00:00]} 44. Rd4 {[%emt 0:00:00]} Qe1+ {[%emt 0:00:00]} 45. Ka2 {[%emt 0:00:00]} d1=Q {[%emt 0:00:00]} 46. Qh8+ {[%emt 0:00:00]} Kg6 {[%emt 0:00:00]} 47. Qg8+ {[%emt 0:00:00]} Kh5 {[%emt 0:00:00]} 48. Qxf7+ {[%emt 0:00:00]} Kh4 {[%emt 0:00:00]} 49. Rxd1 {[%emt 0:00:00]} Qxd1 {[%emt 0:00:00]} 50. Qf4 {[%emt 0:00:00]} Qd5+ {[%emt 0:00:00]} 51. Ka1 {[%emt 0:00:00]} Qxg2 {[%emt 0:00:00]} 52. hxg4 {[%emt 0:00:00]} Kh3 {[%emt 0:00:00]} 53. f3 {[%emt 0:00:00]} Ne5 {[%emt 0:00:40]} 54. Qf6 {[%emt 0:00:00]} Qf1+ {[%emt 0:00:53]} 55. Ka2 {[%emt 0:00:00]} Qc4+ {[%emt 0:00:36]} 56. Kb1 {[%emt 0:00:00]} Qd3+ {[%emt 0:00:17]} 57. Ka1 {[%emt 0:00:00]} Nxf3 {[%emt 0:00:13]} 58. Qxh6+ {[%emt 0:00:00]} Kg2 {[%emt 0:00:12]} 59. Qf6 {[%emt 0:00:00]} Qd1+ {[%emt 0:00:43]} 60. Ka2 {[%emt 0:00:00]} Qa4+ {[%emt 0:00:11]} 61. Kb1 {[%emt 0:00:00]} Rd5 {[%emt 0:00:11]} 0-1

[Event "33rd Cannes Open 2019"]
[Site "Cannes"]
[Date "2019.02.21"]
[Round "5.5"]
[White "Paltrinieri, Nicholas"]
[Black "Lodici, Lorenzo"]
[Result "1/2-1/2"]
[ECO "D00"]
[WhiteElo "2295"]
[BlackElo "2482"]
[Annotator "RC"]
[PlyCount "127"]
[EventDate "2019.02.18"]
[EventType "swiss"]
[EventCountry "FRA"]
[SourceTitle "playchess.com"]
[Source "ChessBase"]
[SourceQuality "1"]
[TimeControl "40/5400+30:1800+30"]

1. d4 {[%emt 0:00:00]} d5 {[%emt 0:00:00]} 2. Bf4 {[%emt 0:00:00]} Nf6 {[%emt 0:00:00]} 3. e3 {[%emt 0:00:00]} e6 {[%emt 0:00:00]} 4. Nd2 {[%emt 0:00:00]} c5 {[%emt 0:00:00]} 5. c3 {[%emt 0:00:00]} Nc6 {[%emt 0:00:01]} 6. Ngf3 {[%emt 0:00:00]} cxd4 {[%emt 0:01:02]} 7. exd4 {[%emt 0:00:05]} Nh5 {[%emt 0:00:03]} 8. Be3 {[%emt 0:00:07]} Bd6 {[%emt 0:00:04]} 9. Ne5 {[%emt 0:00:06]} g6 {[%emt 0:00:03]} 10. g4 {[%emt 0:00:05]} Ng7 {[%emt 0:00:03]} 11. h4 {[%emt 0:00:23]} h5 {[%emt 0:00:13]} 12. Bg5 {[%emt 0:02:18]} Qc7 {[%emt 0:00:20]} 13. Nxc6 {[%emt 0:02:07]} bxc6 {[%emt 0:01:27]} 14. Bf6 {[%emt 0:00:44]} Rg8 {[%emt 0:13:34]} 15. Bxg7 {[%emt 0:15:35]} Rxg7 {[%emt 0:00:02]} 16. gxh5 {[%emt 0:00:09]} e5 {[%emt 0:05:28]} 17. dxe5 {[%emt 0:12:44]} Bxe5 {[%emt 0:00:15]} 18. Bd3 {[%emt 0:00:22]} gxh5 {[%emt 0:18:34]} 19. Qxh5 {[%emt 0:00:30]} Kf8 {[%emt 0:00:09]} 20. Bf5 {[%emt 0:15:01]} Bxc3 {[%emt 0:01:29]} 21. bxc3 {[%emt 0:05:12]} Qe5+ {[%emt 0:00:06]} 22. Kd1 {[%emt 0:00:28]} Qxf5 {[%emt 0:00:08]} 23. Qh8+ {[%emt 0:01:28]} Rg8 {[%emt 0:00:02]} 24. Qh6+ {[%emt 0:00:07]} Ke7 {[%emt 0:00:03]} 25. Qxc6 {[%emt 0:01:32]} Be6 {[%emt 0:13:32]} 26. Qc5+ {[%emt 0:00:35]} Kf6 {[%emt 0:00:05]} 27. Qd4+ {[%emt 0:04:36]} Kg6 {[%emt 0:00:01]} 28. Ke2 {[%emt 0:06:50]} Bd7 {[%emt 0:02:02]} 29. Rag1+ {[%emt 0:06:08]} Kh6 {[%emt 0:03:44]} 30. Rg5 {[%emt 0:01:36]} Qe6+ {[%emt 0:00:01]} 31. Kd1 {[%emt 0:00:32]} f6 {[%emt 0:00:06]} 32. Rxd5 {[%emt 0:05:58]} Rg4 {[%emt 0:17:08]} 33. f4 {[%emt 0:00:52]} Ba4+ {[%emt 0:01:07]} 34. Kc1 {[%emt 0:00:06]} Rf8 {[%emt 0:00:24]} 35. Rf1 {[%emt 0:09:39]} Be8 {[%emt 0:06:01]} 36. Nc4 {[%emt 0:05:14]} Qe2 {[%emt 0:09:31]} 37. Ne3 {[%emt 0:00:05]} Rg2 {[%emt 0:01:15]} 38. Qd2 {[%emt 0:00:12]} Qxd2+ {[%emt 0:00:29]} 39. Rxd2 {[%emt 0:00:01]} Rxd2 {[%emt 0:00:05]} 40. Kxd2 {[%emt 0:00:06]} Kh5 {[%emt 0:01:11]} 41. Rg1 {[%emt 0:36:31]} Kxh4 {[%emt 0:36:47]} 42. Rg7 {[%emt 0:00:00]} Bc6 {[%emt 0:00:00]} 43. c4 {[%emt 0:00:00]} Rd8+ {[%emt 0:00:00]} 44. Ke2 {[%emt 0:00:00]} Be4 {[%emt 0:00:00]} 45. f5 {[%emt 0:00:00]} Kh5 {[%emt 0:00:00]} 46. a4 {[%emt 0:00:00]} a5 {[%emt 0:00:00]} 47. Kf2 {[%emt 0:00:00]} Rd3 {[%emt 0:00:00]} 48. Ra7 {[%emt 0:00:00]} Kg5 {[%emt 0:00:00]} 49. Rxa5 {[%emt 0:00:00]} Rd2+ {[%emt 0:00:00]} 50. Ke1 {[%emt 0:00:00]} Ra2 {[%emt 0:00:00]} 51. Kd1 {[%emt 0:00:27]} Kf4 {[%emt 0:00:00]} 52. Nd5+ {[%emt 0:01:00]} Bxd5 {[%emt 0:00:00]} 53. cxd5 {[%emt 0:00:56]} Kxf5 {[%emt 0:00:00]} 54. d6+ {[%emt 0:01:41]} Ke6 {[%emt 0:00:00]} 55. Rd5 {[%emt 0:00:51]} Kd7 {[%emt 0:00:00]} 56. a5 {[%emt 0:02:12]} f5 {[%emt 0:00:00]} 57. Ke1 {[%emt 0:01:55]} f4 {[%emt 0:00:00]} 58. Kf1 {[%emt 0:00:03]} f3 {[%emt 0:00:00]} 59. Ke1 {[%emt 0:00:06]} Re2+ {[%emt 0:00:00]} 60. Kf1 {[%emt 0:00:03]} Ra2 {[%emt 0:00:00]} 61. Rh5 {[%emt 0:01:55]} Kxd6 {[%emt 0:00:00]} 62. a6 {[%emt 0:00:04]} Kc6 {[%emt 0:00:00]} 63. Rh6+ {[%emt 0:00:03]} Kb5 {[%emt 0:00:00]} 64. Rf6 {[%emt 0:00:06]} 1/2-1/2

[Event "33rd Cannes Open 2019"]
[Site "Cannes"]
[Date "2019.02.21"]
[Round "5.6"]
[White "Barseghyan, Harutyun"]
[Black "Joie, Sebastien"]
[Result "1/2-1/2"]
[ECO "D00"]
[WhiteElo "2457"]
[BlackElo "2418"]
[Annotator "ChessBase"]
[PlyCount "24"]
[EventDate "2019.02.18"]
[EventType "swiss"]
[EventCountry "FRA"]
[SourceTitle "playchess.com"]
[Source "ChessBase"]
[SourceQuality "1"]
[TimeControl "40/5400+30:1800+30"]

1. d4 {[%emt 0:04:27]} d5 {[%emt 0:00:09]} 2. Bf4 {[%emt 0:00:04]} Nf6 {[%emt 0:00:53]} 3. e3 {[%emt 0:00:28]} c5 {[%emt 0:00:08]} 4. c3 {[%emt 0:00:05]} Nc6 {[%emt 0:00:06]} 5. Nd2 {[%emt 0:00:13]} Bf5 {[%emt 0:01:20]} 6. Qb3 {[%emt 0:05:15]} Qd7 {[%emt 0:00:28]} 7. dxc5 {[%emt 0:01:35]} e5 {[%emt 0:01:08]} 8. Bg3 {[%emt 0:00:19]} Bxc5 {[%emt 0:00:51]} 9. Ngf3 {[%emt 0:00:07]} Bd6 {[%emt 0:01:36]} 10. Bb5 {[%emt 0:01:42]} Qe7 {[%emt 0:00:13]} 11. Bh4 {[%emt 0:17:13]} Be6 {[%emt 0:00:17]} 12. Ng5 {[%emt 0:11:39]} Bd7 {[%emt 0:01:58]} 1/2-1/2

[Event "33rd Cannes Open 2019"]
[Site "Cannes"]
[Date "2019.02.21"]
[Round "6.2"]
[White "Ghasi, Ameet K"]
[Black "Maiorov, Nikita"]
[Result "1/2-1/2"]
[ECO "A07"]
[WhiteElo "2503"]
[BlackElo "2523"]
[Annotator "ChessBase"]
[PlyCount "29"]
[EventDate "2019.02.18"]
[EventType "swiss"]
[EventCountry "FRA"]
[SourceTitle "playchess.com"]
[Source "ChessBase"]
[SourceQuality "1"]
[TimeControl "40/5400+30:1800+30"]

1. Nf3 {[%emt 0:00:48]} Nf6 {[%emt 0:03:19]} 2. g3 {[%emt 0:00:06]} d5 {[%emt 0:00:30]} 3. Bg2 {[%emt 0:00:03]} c6 {[%emt 0:00:04]} 4. O-O {[%emt 0:00:24]} Bg4 {[%emt 0:00:09]} 5. b3 {[%emt 0:00:22]} e6 {[%emt 0:00:20]} 6. Bb2 {[%emt 0:00:08]} Nbd7 {[%emt 0:00:12]} 7. c4 {[%emt 0:00:06]} Be7 {[%emt 0:00:08]} 8. d3 {[%emt 0:02:29]} O-O {[%emt 0:00:05]} 9. Na3 {[%emt 0:00:32]} a5 {[%emt 0:04:50]} 10. cxd5 {[%emt 0:10:16]} exd5 {[%emt 0:00:34]} 11. Nc2 {[%emt 0:00:21]} Re8 {[%emt 0:08:42]} 12. Rb1 {[%emt 0:06:33]} Bf8 {[%emt 0:07:13]} 13. h3 {[%emt 0:07:59]} Bxf3 {[%emt 0:02:26]} 14. Bxf3 {[%emt 0:00:20]} Bd6 {[%emt 0:00:12]} 15. Qd2 {[%emt 0:05:11]} 1/2-1/2

[Event "33rd Cannes Open 2019"]
[Site "Cannes"]
[Date "2019.02.21"]
[Round "6.4"]
[White "Joie, Sebastien"]
[Black "Krzyzanowski, Marcin"]
[Result "1-0"]
[ECO "E71"]
[WhiteElo "2418"]
[BlackElo "2504"]
[Annotator "ChessBase"]
[PlyCount "117"]
[EventDate "2019.02.18"]
[EventType "swiss"]
[EventCountry "FRA"]
[SourceTitle "playchess.com"]
[Source "ChessBase"]
[SourceQuality "1"]
[TimeControl "40/5400+30:1800+30"]

1. c4 {[%emt 0:00:00]} g6 {[%emt 0:00:00]} 2. e4 {[%emt 0:00:07]} Bg7 {[%emt 0:00:42]} 3. d4 {[%emt 0:00:16]} d6 {[%emt 0:01:21]} 4. Nc3 {[%emt 0:00:07]} Nf6 {[%emt 0:00:14]} 5. h3 {[%emt 0:00:19]} O-O {[%emt 0:00:15]} 6. Be3 {[%emt 0:00:24]} c5 {[%emt 0:00:09]} 7. Nf3 {[%emt 0:00:59]} cxd4 {[%emt 0:00:03]} 8. Nxd4 {[%emt 0:00:06]} b6 {[%emt 0:00:05]} 9. g4 {[%emt 0:02:01]} Bb7 {[%emt 0:02:02]} 10. Bg2 {[%emt 0:00:07]} Nbd7 {[%emt 0:02:19]} 11. g5 {[%emt 0:05:44]} Ne8 {[%emt 0:01:55]} 12. O-O {[%emt 0:00:23]} Rc8 {[%emt 0:01:06]} 13. b3 {[%emt 0:00:58]} a6 {[%emt 0:04:38]} 14. Rc1 {[%emt 0:00:28]} Nc5 {[%emt 0:01:16]} 15. f4 {[%emt 0:01:35]} e5 {[%emt 0:02:20]} 16. Nde2 {[%emt 0:09:08]} exf4 {[%emt 0:01:54]} 17. Bxf4 {[%emt 0:00:08]} Ne6 {[%emt 0:03:41]} 18. Be3 {[%emt 0:00:26]} Nxg5 {[%emt 0:07:35]} 19. Nd5 {[%emt 0:00:22]} b5 {[%emt 0:13:58]} 20. cxb5 {[%emt 0:05:43]} axb5 {[%emt 0:01:02]} 21. Qd3 {[%emt 0:00:31]} Ra8 {[%emt 0:03:57]} 22. Qxb5 {[%emt 0:08:07]} Ba6 {[%emt 0:08:53]} 23. Qb6 {[%emt 0:00:11]} Nxh3+ {[%emt 0:03:44]} 24. Bxh3 {[%emt 0:00:02]} Qh4 {[%emt 0:01:32]} 25. Bg2 {[%emt 0:13:16]} Bxe2 {[%emt 0:01:33]} 26. Rf2 {[%emt 0:02:38]} Bg4 {[%emt 0:05:30]} 27. Qb7 {[%emt 0:04:42]} Nf6 {[%emt 0:04:17]} 28. Qe7 {[%emt 0:00:11]} Qg3 {[%emt 0:04:33]} 29. Rxf6 {[%emt 0:00:40]} Bh3 {[%emt 0:02:16]} 30. Rf2 {[%emt 0:06:51]} Be5 {[%emt 0:02:44]} 31. Bf4 {[%emt 0:01:07]} Bxf4 {[%emt 0:01:02]} 32. Nxf4 {[%emt 0:00:02]} Rae8 {[%emt 0:02:47]} 33. Qf6 {[%emt 0:00:19]} Bxg2 {[%emt 0:00:51]} 34. Nh5 {[%emt 0:02:47]} Qe5 {[%emt 0:01:46]} 35. Qxe5 {[%emt 0:00:01]} Rxe5 {[%emt 0:00:07]} 36. Nf6+ {[%emt 0:00:03]} Kg7 {[%emt 0:00:05]} 37. Kxg2 {[%emt 0:00:09]} h5 {[%emt 0:02:02]} 38. Rc7 {[%emt 0:00:59]} h4 {[%emt 0:01:49]} 39. a4 {[%emt 0:09:00]} Rg5+ {[%emt 0:03:48]} 40. Kh2 {[%emt 0:01:34]} Rg3 {[%emt 0:01:57]} 41. a5 {[%emt 0:32:07]} Rxb3 {[%emt 0:33:05]} 42. a6 {[%emt 0:01:32]} g5 {[%emt 0:00:00]} 43. a7 {[%emt 0:00:00]} Kg6 {[%emt 0:00:00]} 44. Rxf7 {[%emt 0:00:00]} Ra8 {[%emt 0:00:00]} 45. Nd5 {[%emt 0:00:00]} Ra3 {[%emt 0:00:00]} 46. R2f6+ {[%emt 0:00:00]} Kh5 {[%emt 0:00:00]} 47. Rh7+ {[%emt 0:00:00]} Kg4 {[%emt 0:00:00]} 48. Rf2 {[%emt 0:00:00]} Rh3+ {[%emt 0:00:00]} 49. Kg1 {[%emt 0:00:00]} Ra3 {[%emt 0:00:00]} 50. Nf6+ {[%emt 0:07:11]} Kg3 {[%emt 0:00:00]} 51. Rg7 {[%emt 0:00:21]} Ra1+ {[%emt 0:00:00]} 52. Rf1 {[%emt 0:00:01]} R8xa7 {[%emt 0:00:00]} 53. Rxg5+ {[%emt 0:00:18]} Kh3 {[%emt 0:00:00]} 54. Rxa1 {[%emt 0:01:02]} Rxa1+ {[%emt 0:00:00]} 55. Kf2 {[%emt 0:00:04]} Kh2 {[%emt 0:00:00]} 56. Ng4+ {[%emt 0:01:18]} Kh1 {[%emt 0:00:00]} 57. Rh5 {[%emt 0:00:32]} Ra2+ {[%emt 0:00:00]} 58. Kf3 {[%emt 0:00:07]} Ra3+ {[%emt 0:00:03]} 59. Ne3 {[%emt 0:00:06]} 1-0

[Event "33rd Cannes Open 2019"]
[Site "Cannes"]
[Date "2019.02.22"]
[Round "7.4"]
[White "Rubio Mejia, Luis Ignacio"]
[Black "Ghasi, Ameet K"]
[Result "0-1"]
[ECO "E97"]
[WhiteElo "2437"]
[BlackElo "2503"]
[Annotator "ChessBase"]
[PlyCount "114"]
[EventDate "2019.02.18"]
[EventType "swiss"]
[EventCountry "FRA"]
[SourceTitle "playchess.com"]
[Source "ChessBase"]
[SourceQuality "1"]
[TimeControl "40/5400+30:1800+30"]

1. d4 {[%emt 0:06:02]} Nf6 {[%emt 0:01:03]} 2. c4 {[%emt 0:00:22]} g6 {[%emt 0:00:05]} 3. Nc3 {[%emt 0:00:15]} Bg7 {[%emt 0:00:39]} 4. e4 {[%emt 0:00:13]} d6 {[%emt 0:00:03]} 5. Nf3 {[%emt 0:00:16]} O-O {[%emt 0:00:14]} 6. Be2 {[%emt 0:01:06]} e5 {[%emt 0:00:56]} 7. O-O {[%emt 0:02:35]} Nc6 {[%emt 0:00:53]} 8. d5 {[%emt 0:00:09]} Ne7 {[%emt 0:00:05]} 9. Nd2 {[%emt 0:02:34]} a5 {[%emt 0:03:30]} 10. Rb1 {[%emt 0:04:14]} Bd7 {[%emt 0:13:32]} 11. b3 {[%emt 0:06:01]} c6 {[%emt 0:13:28]} 12. Bb2 {[%emt 0:22:43]} c5 {[%emt 0:06:26]} 13. a3 {[%emt 0:06:35]} Bh6 {[%emt 0:01:08]} 14. Re1 {[%emt 0:07:09]} Ne8 {[%emt 0:05:11]} 15. Nb5 {[%emt 0:08:23]} b6 {[%emt 0:01:16]} 16. Bd3 {[%emt 0:04:28]} f5 {[%emt 0:02:17]} 17. Bc3 {[%emt 0:05:35]} Bc8 {[%emt 0:12:05]} 18. b4 {[%emt 0:04:26]} Nf6 {[%emt 0:00:22]} 19. bxc5 {[%emt 0:06:17]} bxc5 {[%emt 0:00:04]} 20. f3 {[%emt 0:03:02]} Bg5 {[%emt 0:05:40]} 21. Qe2 {[%emt 0:03:16]} h5 {[%emt 0:02:23]} 22. a4 {[%emt 0:00:44]} Rf7 {[%emt 0:05:59]} 23. Nb3 {[%emt 0:01:04]} fxe4 {[%emt 0:05:42]} 24. Bxe4 {[%emt 0:00:35]} Nf5 {[%emt 0:02:16]} 25. Bd2 {[%emt 0:01:45]} Nh7 {[%emt 0:04:00]} 26. Bd3 {[%emt 0:01:19]} Bd7 {[%emt 0:02:18]} 27. Bxf5 {[%emt 0:01:07]} Bxf5 {[%emt 0:00:16]} 28. Rbc1 {[%emt 0:00:10]} Bh4 {[%emt 0:02:22]} 29. Rf1 {[%emt 0:00:28]} Bf6 {[%emt 0:00:52]} 30. Be3 {[%emt 0:00:58]} Be7 {[%emt 0:01:06]} 31. Nd2 {[%emt 0:00:40]} Nf6 {[%emt 0:00:18]} 32. Rf2 {[%emt 0:00:34]} Qd7 {[%emt 0:01:29]} 33. Rff1 {[%emt 0:00:29]} g5 {[%emt 0:03:33]} 34. Bxg5 {[%emt 0:00:39]} Nxd5 {[%emt 0:00:07]} 35. cxd5 {[%emt 0:00:13]} Bxg5 {[%emt 0:00:05]} 36. Rc4 {[%emt 0:00:22]} Raf8 {[%emt 0:02:24]} 37. Ne4 {[%emt 0:00:33]} Be7 {[%emt 0:00:02]} 38. Nf2 {[%emt 0:00:43]} Rg7 {[%emt 0:00:29]} 39. Kh1 {[%emt 0:00:24]} Rf6 {[%emt 0:00:57]} 40. Rg1 {[%emt 0:00:41]} Rfg6 {[%emt 0:00:47]} 41. f4 {[%emt 0:17:01]} exf4 {[%emt 0:01:51]} 42. Rxf4 {[%emt 0:00:15]} Bg5 {[%emt 0:01:24]} 43. Rf3 {[%emt 0:00:52]} Re7 {[%emt 0:11:51]} 44. Qb2 {[%emt 0:02:50]} Bg4 {[%emt 0:09:25]} 45. Nxg4 {[%emt 0:06:35]} hxg4 {[%emt 0:01:34]} 46. Qc2 {[%emt 0:00:05]} Rh6 {[%emt 0:05:50]} 47. Rf5 {[%emt 0:00:17]} Bf6 {[%emt 0:00:10]} 48. g3 {[%emt 0:03:33]} Qe8 {[%emt 0:02:50]} 49. Rf2 {[%emt 0:01:20]} Qh5 {[%emt 0:01:47]} 50. Qc4 {[%emt 0:01:44]} Be5 {[%emt 0:00:34]} 51. Qb3 {[%emt 0:01:00]} Rf7 {[%emt 0:00:25]} 52. Rgf1 {[%emt 0:00:25]} Rf3 {[%emt 0:00:12]} 53. Qc2 {[%emt 0:00:27]} Bxg3 {[%emt 0:00:46]} 54. Rxf3 {[%emt 0:00:08]} gxf3 {[%emt 0:00:20]} 55. Nc3 {[%emt 0:00:16]} Qxh2+ 56. Qxh2 {[%emt 0:00:06]} Rxh2+ {[%emt 0:00:28]} 57. Kg1 {[%emt 0:00:08]} f2+ {[%emt 0:00:03]} 0-1

[Event "33rd Cannes Open 2019"]
[Site "Cannes"]
[Date "2019.02.22"]
[Round "7.7"]
[White "Gilevych, Artem"]
[Black "Apicella, Manuel"]
[Result "1/2-1/2"]
[ECO "C15"]
[WhiteElo "2403"]
[BlackElo "2501"]
[Annotator "RC"]
[PlyCount "93"]
[EventDate "2019.02.18"]
[EventType "swiss"]
[EventCountry "FRA"]
[SourceTitle "playchess.com"]
[Source "ChessBase"]
[SourceQuality "1"]
[TimeControl "40/5400+30:1800+30"]

1. e4 {[%emt 0:09:19]} e6 {[%emt 0:00:00]} 2. d4 {[%emt 0:00:23]} d5 {[%emt 0:00:00]} 3. Nc3 {[%emt 0:00:05]} Bb4 {[%emt 0:00:11]} 4. Nge2 {[%emt 0:00:06]} Nc6 {[%emt 0:05:39]} 5. a3 {[%emt 0:00:54]} Ba5 {[%emt 0:00:11]} 6. b4 {[%emt 0:00:24]} Bb6 {[%emt 0:00:06]} 7. Bb2 {[%emt 0:00:05]} Nge7 {[%emt 0:03:56]} 8. g3 {[%emt 0:00:13]} e5 {[%emt 0:04:39]} 9. dxe5 {[%emt 0:00:52]} Nxe5 {[%emt 0:02:38]} 10. Nf4 {[%emt 0:00:06]} Ng4 {[%emt 0:18:01]} 11. Nd3 {[%emt 0:00:35]} O-O {[%emt 0:02:21]} 12. Bg2 {[%emt 0:14:59]} Bd4 {[%emt 0:10:09]} 13. O-O {[%emt 0:01:51]} dxe4 {[%emt 0:08:27]} 14. Nxe4 {[%emt 0:00:13]} Bxb2 {[%emt 0:02:51]} 15. Nxb2 {[%emt 0:00:56]} Qxd1 {[%emt 0:02:09]} 16. Rfxd1 {[%emt 0:02:32]} Rb8 {[%emt 0:01:50]} 17. Rd2 {[%emt 0:09:10]} b6 {[%emt 0:02:19]} 18. Re1 {[%emt 0:04:55]} Nf5 {[%emt 0:02:42]} 19. h3 {[%emt 0:04:27]} Ne5 {[%emt 0:02:05]} 20. f4 {[%emt 0:02:34]} Ng6 {[%emt 0:00:58]} 21. Kf2 {[%emt 0:01:11]} Bb7 {[%emt 0:03:32]} 22. Rd7 {[%emt 0:04:10]} Rfc8 {[%emt 0:00:38]} 23. Nc4 {[%emt 0:02:34]} Nf8 {[%emt 0:00:42]} 24. Rd2 {[%emt 0:03:52]} Rd8 {[%emt 0:04:13]} 25. Red1 {[%emt 0:05:12]} Ne6 {[%emt 0:00:42]} 26. a4 {[%emt 0:05:03]} Kf8 {[%emt 0:01:31]} 27. c3 {[%emt 0:16:18]} Rxd2+ {[%emt 0:03:16]} 28. Rxd2 {[%emt 0:00:03]} Rd8 {[%emt 0:01:34]} 29. Rxd8+ {[%emt 0:01:08]} Nxd8 {[%emt 0:00:05]} 30. Bf3 {[%emt 0:00:14]} Ke7 {[%emt 0:01:45]} 31. Ne3 {[%emt 0:02:22]} Bxe4 {[%emt 0:06:40]} 32. Bxe4 {[%emt 0:00:08]} Nxe3 {[%emt 0:00:03]} 33. Kxe3 {[%emt 0:00:04]} h6 {[%emt 0:00:22]} 34. Bd5 {[%emt 0:01:52]} c6 {[%emt 0:00:28]} 35. Bb3 {[%emt 0:00:29]} Nb7 {[%emt 0:00:10]} 36. Kd4 {[%emt 0:00:42]} f6 {[%emt 0:00:33]} 37. Bc2 {[%emt 0:01:25]} Ke6 {[%emt 0:01:25]} 38. Bb3+ {[%emt 0:00:26]} Ke7 {[%emt 0:00:26]} 39. Bd1 {[%emt 0:02:12]} Ke6 {[%emt 0:00:16]} 40. Bg4+ {[%emt 0:00:07]} f5 {[%emt 0:01:12]} 41. Bf3 {[%emt 0:06:35]} c5+ {[%emt 0:00:58]} 42. Kd3 {[%emt 0:00:06]} Nd6 {[%emt 0:00:15]} 43. a5 {[%emt 0:03:56]} Kf6 {[%emt 0:01:44]} 44. Bd5 {[%emt 0:02:45]} Ke7 {[%emt 0:00:46]} 45. Bf3 {[%emt 0:13:02]} Kf6 {[%emt 0:00:47]} 46. Bd5 {[%emt 0:00:13]} Ke7 {[%emt 0:00:13]} 47. Bf3 1/2-1/2

[Event "33rd Cannes Open 2019"]
[Site "Cannes"]
[Date "2019.02.23"]
[Round "8.3"]
[White "Maiorov, Nikita"]
[Black "Basso, Pier Luigi"]
[Result "1/2-1/2"]
[ECO "D45"]
[WhiteElo "2523"]
[BlackElo "2512"]
[Annotator "ChessBase"]
[PlyCount "79"]
[EventDate "2019.02.18"]
[EventType "swiss"]
[EventCountry "FRA"]
[SourceTitle "playchess.com"]
[Source "ChessBase"]
[SourceQuality "1"]
[TimeControl "40/5400+30:1800+30"]

1. d4 {[%emt 0:02:59]} d5 {[%emt 0:00:00]} 2. c4 {[%emt 0:00:02]} c6 {[%emt 0:00:00]} 3. Nc3 {[%emt 0:00:01]} Nf6 {[%emt 0:00:00]} 4. e3 {[%emt 0:00:02]} e6 {[%emt 0:00:00]} 5. Nf3 {[%emt 0:00:02]} Nbd7 {[%emt 0:00:00]} 6. Qc2 {[%emt 0:00:02]} b6 {[%emt 0:00:03]} 7. Bd3 {[%emt 0:04:04]} Bb7 {[%emt 0:00:08]} 8. O-O {[%emt 0:00:04]} Be7 {[%emt 0:00:07]} 9. b3 {[%emt 0:00:12]} dxc4 {[%emt 0:00:07]} 10. Bxc4 {[%emt 0:00:26]} c5 {[%emt 0:04:34]} 11. dxc5 {[%emt 0:01:05]} Bxc5 {[%emt 0:00:16]} 12. Bb2 {[%emt 0:00:22]} O-O {[%emt 0:01:09]} 13. Rad1 {[%emt 0:03:55]} Qb8 {[%emt 0:13:23]} 14. Ng5 {[%emt 0:19:51]} Ne5 {[%emt 0:02:25]} 15. Nce4 {[%emt 0:09:28]} Nxe4 {[%emt 0:09:58]} 16. Nxe4 {[%emt 0:00:03]} Bxe4 {[%emt 0:03:09]} 17. Qxe4 {[%emt 0:00:05]} Nxc4 {[%emt 0:00:04]} 18. Qxc4 {[%emt 0:00:09]} Rd8 {[%emt 0:01:29]} 19. Qe4 {[%emt 0:05:35]} Rxd1 {[%emt 0:07:35]} 20. Rxd1 {[%emt 0:00:05]} Qe8 {[%emt 0:00:11]} 21. Qe5 {[%emt 0:09:40]} Bf8 {[%emt 0:00:06]} 22. Qc7 {[%emt 0:02:36]} Qb5 {[%emt 0:03:44]} 23. Rc1 {[%emt 0:07:50]} Qe2 {[%emt 0:02:27]} 24. Qc2 {[%emt 0:00:08]} Qa6 {[%emt 0:03:26]} 25. h3 {[%emt 0:03:18]} h6 {[%emt 0:02:05]} 26. Bd4 {[%emt 0:02:56]} Bc5 {[%emt 0:17:42]} 27. Bxc5 {[%emt 0:02:25]} bxc5 {[%emt 0:00:01]} 28. Qd2 {[%emt 0:03:12]} Qb6 {[%emt 0:00:58]} 29. Rc3 {[%emt 0:03:16]} a5 {[%emt 0:02:22]} 30. Rd3 {[%emt 0:00:52]} a4 {[%emt 0:02:31]} 31. bxa4 {[%emt 0:02:23]} Qb1+ {[%emt 0:00:46]} 32. Kh2 {[%emt 0:00:17]} c4 {[%emt 0:05:46]} 33. Ra3 {[%emt 0:05:01]} Rb8 {[%emt 0:03:49]} 34. Qd4 {[%emt 0:05:35]} Rb2 {[%emt 0:05:16]} 35. e4 {[%emt 0:01:37]} Rxa2 {[%emt 0:02:54]} 36. Rg3 {[%emt 0:00:13]} Qa1 {[%emt 0:02:16]} 37. Qxc4 {[%emt 0:04:33]} Rxa4 {[%emt 0:01:10]} 38. Qc8+ {[%emt 0:00:30]} Kh7 {[%emt 0:00:06]} 39. Qc7 {[%emt 0:00:27]} Ra7 {[%emt 0:00:38]} 40. Qc3 {[%emt 0:00:28]} 1/2-1/2